Cogmind - Beta 13 @@@ ROGUE MODE // 2024.05.10 @ 23:04:05 Player: Silis Result: Destroyed by GE-JH7(R) with Subdweller Laser Performance ------------- Evolutions (0) 0 Regions Visited (3) 600 Robots Destroyed (16) 80 Value Destroyed (497) 497 Prototype IDs (0) 0 Alien Tech Used (0) 0 Bonus (0) 0 TOTAL SCORE: 1177 Bonus ------- None Cogmind --------- Core Integrity 0/250 Matter 287/300 Energy 98/100 System Corruption 0% Temperature Warm (123) Movement Core (50) Location -10/Subcaves Parts ------- > --- POWER (1) -------- (None) > --- PROPULSION (2) --- (None) > --- UTILITY (2) ------ (None) > --- WEAPON (2) ------- Light Assault Rifle Light Assault Rifle > --- INVENTORY (5) ---- Light Ion Engine Peak State ------------ > --- POWER ------------ Light Nuclear Core > --- PROPULSION ------- Light Treads > --- UTILITY ---------- Scrap Shield > --- WEAPON ----------- Light Assault Rifle Light Assault Rifle > --- INVENTORY -------- Light Ion Engine Assault Rifle [Rating: 10] Favorites ----------- Power Ion Engine Engine Ion Engine Power Core Light Nuclear Core Propulsion Light Treads Treads Light Treads Utility Small Storage Unit Storage Small Storage Unit Protection Scrap Shield Weapon Light Assault Rifle Ballistic Gun Light Assault Rifle Build | -11 -10 -10 -10 ------- Run | Yrd Mat Min Sub Slots Evolved . | . . . . Power . | . . . . Propulsion . | . . . . Utility . | . . . . Weapon . | . . . . Parts Attached 10 | 6 . 2 2 Power 2 | 1 . 1 . Engine 1 | 1 . . . Core 1 | . . 1 . Reactor . | . . . . Propulsion 2 | 2 . . . Treads 2 | 2 . . . Leg . | . . . . Wheel . | . . . . Hover . | . . . . Flight . | . . . . Utility 2 | 1 . . 1 Device . | . . . . Storage 1 | 1 . . . Processor . | . . . . Hackware . | . . . . Protection 1 | . . . 1 Artifact . | . . . . Weapon 4 | 2 . 1 1 Energy Gun . | . . . . Energy Cannon . | . . . . Ballistic Gun 4 | 2 . 1 1 Ballistic Cannon . | . . . . Launcher . | . . . . Special Weapon . | . . . . Impact Weapon . | . . . . Slashing Weapon . | . . . . Piercing Weapon . | . . . . Special Melee Weapon . | . . . . Unidentified Prototypes . | . . . . Parts Lost 6 | . . 3 3 Power 2 | . . 1 1 Propulsion 2 | . . 1 1 Utility 1 | . . . 1 Weapon 1 | . . 1 . Highest Loss Streak 3 | . . 2 3 To Critical Strikes . | . . . . Average Slot Usage (%) 77 | . 85 78 70 Engine 8 | . 14 9 . Core 5 | . . 3 14 Treads 22 | . 28 23 13 Storage 11 | . 14 14 . Protection 2 | . . . 13 Ballistic Gun 27 | . 28 26 28 Naked Turns . | . . . . Heaviest Build 25 | 13 13 13 25 Greatest Support 40 | 40 40 40 20 Greatest Overweight (x) 1 | . . . 1 Average Overweight (x) . | . . . . Largest Inventory Capacity 8 | 8 8 8 8 Average Capacity 7 | 6 8 8 5 Most Carried 5 | 5 3 4 5 Average Carried 2 | 1 2 2 1 Final Capacity 8 | 8 8 8 5 Final Carried 3 | 1 3 2 1 Class Distribution -------------------- 100% | Mutant Dominant Class ---------------- Mutant | -10/Materials Mutant | -10/Mines Mutant | -10/Subcaves Resources | -11 -10 -10 -10 ----------- Run | Yrd Mat Min Sub Matter Collected 429 | 108 128 193 . Remotely . | . . . . Salvage Created 495 | . 176 230 89 Parts 30 | . 14 10 6 Haulers Intercepted . | . . . . Recyclers Shooed 1 | . . 1 . Parts Field Recycled . | . . . . Retrieved Matter . | . . . . Parts Self-Destructed . | . . . . Prevented . | . . . . Kills | -11 -10 -10 -10 ------- Run | Yrd Mat Min Sub Combat Hostiles Destroyed 16 | . 6 8 2 Guns 16 | . 6 8 2 Classes Destroyed 7 | . 3 3 1 Worker 1 | . . 1 . Watcher 1 | . 1 . . Swarmer 3 | . 3 . . Grunt 7 | . 3 4 . Demolisher 2 | . . 2 . Subdweller 2 | . . . 2 Assembled 2 | . . 2 . Best Kill Streak 4 | . 4 3 2 Combat Bots Only 4 | . 4 3 2 Max Kills in Single Turn 2 | . 2 1 1 Gunslinging 1 | . 1 . . Exploded . | . . . . Melee . | . . . . Uniques/NPCs Destroyed . | . . . . Combat | -11 -10 -10 -10 -------- Run | Yrd Mat Min Sub Hostile Shots Fired 91 | . 24 42 25 Missed 30 | . 12 9 9 Damage Taken 1143 | . 100 609 434 Core 259 | . 15 125 119 Absorbed by Shields . | . . . . Core Remaining (%) 100 | 100 . . . Volleys Fired 47 | . 12 31 4 Largest 2 | . 2 2 2 Hottest 40 | . 40 40 40 Shots Fired 86 | . 24 54 8 Gun 86 | . 24 54 8 Cannon . | . . . . Launcher . | . . . . Special . | . . . . Kinetic 86 | . 24 54 8 Thermal . | . . . . Explosive . | . . . . Electromagnetic . | . . . . Robot Hit Streak 7 | . 7 5 6 Robot Miss Streak 3 | . 3 2 2 Penetration Max . | . . . . Secondary Targets 4 | . 2 2 . Max Gunslinging Chain 1 | . 1 1 . Shots Hit Robots 52 | . 14 32 6 Core Hits 31 | . 10 16 5 Critical Kills . | . . . . Critical Parts Destroyed 1 | . . 1 . Critical Strikes 1 | . . 1 . Destroy 1 | . . 1 . Melee Attacks . | . . . . Impact . | . . . . Slashing . | . . . . Piercing . | . . . . Sneak Attacks . | . . . . Combat Hostiles . | . . . . Follow-up Attacks . | . . . . Damage Inflicted 569 | . 147 357 65 Guns 560 | . 147 348 65 Cannons . | . . . . Explosions . | . . . . Melee . | . . . . Ramming 9 | . . 9 . Kinetic 560 | . 147 348 65 Thermal . | . . . . Explosive . | . . . . Electromagnetic . | . . . . Impact . | . . . . Slashing . | . . . . Piercing . | . . . . Highest Corruption . | . . . . Average Corruption . | . . . . Corruption Purged . | . . . . Corruption Blocked . | . . . . Overload Shots . | . . . . Overflow Damage . | . . . . Projectiles . | . . . . Explosions . | . . . . Melee . | . . . . Knockbacks . | . . . . Impact . | . . . . Kinetic . | . . . . Secondary . | . . . . Self-Inflicted Damage . | . . . . Shots . | . . . . Rammed 2 | . . 2 . Targets Rammed 2 | . . 2 . Kicked . | . . . . Crushed . | . . . . Highest Temperature 241 | . 6 16 241 Average Temperature 42 | . 6 7 182 Received Heat Transfer 558 | . 18 204 336 Siege Activations . | . . . . Robots Corrupted . | . . . . Combat Hostiles . | . . . . Parts Fried . | . . . . Impact Corruptions . | . . . . Robots Melted . | . . . . Combat Hostiles . | . . . . Parts Melted . | . . . . Heat Transferred . | . . . . Parts Sabotaged . | . . . . Parts Stolen . | . . . . Parts Stripped . | . . . . Power Chain Reactions . | . . . . Alert | -11 -10 -10 -10 ------- Run | Yrd Mat Min Sub Peak Influence 175 | . 156 175 . Initial 60 | . . 60 . Average 75 | . 108 71 . Maximum Alert Level . | . . . . Low Security (%) 100 | 100 100 100 . Level 1 . | . . . . Level 2 . | . . . . Level 3 . | . . . . Level 4 . | . . . . Level 5 . | . . . . High Security . | . . . . Max Security . | . . . . Squads Dispatched . | . . . . Investigation . | . . . . Extermination . | . . . . Reinforcement . | . . . . Assault . | . . . . Garrison . | . . . . Intercept . | . . . . Searches Triggered . | . . . . Construction Impeded . | . . . . Haulers Reinforced . | . . . . Active Scanning Responses . | . . . . Cargo Convoy Interrupts . | . . . . Stealth | -11 -10 -10 -10 --------- Run | Yrd Mat Min Sub Distress Signals . | . . . . Communications Jammed . | . . . . Distress Signals . | . . . . Times Spotted 29 | . 8 8 13 Peak Tracking Total 12 | . 4 2 12 Tactical Retreats . | . . . . Traps | -11 -10 -10 -10 ------- Run | Yrd Mat Min Sub Traps Triggered . | . . . . Indirectly . | . . . . Trap Hack Attempts . | . . . . Triggered . | . . . . Disarmed . | . . . . Reprogrammed . | . . . . Reused . | . . . . Traps Extracted . | . . . . Installed . | . . . . Triggered . | . . . . Machines | -11 -10 -10 -10 ---------- Run | Yrd Mat Min Sub Machines Disabled . | . . . . Max in Single Turn . | . . . . Machines Repaired . | . . . . Machines Dismantled . | . . . . Machines Sabotaged . | . . . . Overloaded Fab Kills . | . . . . Hacking | -11 -10 -10 -10 --------- Run | Yrd Mat Min Sub Machines Accessed 1 | . 1 . . Terminals 1 | . 1 . . Fabricators . | . . . . Repair Stations . | . . . . Recycling Units . | . . . . Scanalyzers . | . . . . Garrison Access . | . . . . Total Hacks 7 | . 7 . . Successful 3 | . 3 . . Failed 4 | . 4 . . Catastrophic . | . . . . Database Lockouts . | . . . . Manual . | . . . . Terminals 7 | . 7 . . Fabricators . | . . . . Repair Stations . | . . . . Recycling Units . | . . . . Scanalyzers . | . . . . Garrison Access . | . . . . Terminal Hacks 3 | . 3 . . Record 3 | . 3 . . Fabricator Hacks . | . . . . Repair Station Hacks . | . . . . Recycling Unit Hacks . | . . . . Scanalyzer . | . . . . Garrison Access Hacks . | . . . . Unauthorized Hacks . | . . . . Terminals . | . . . . Fabricators . | . . . . Repair Stations . | . . . . Recycling Units . | . . . . Scanalyzers . | . . . . Garrison Access . | . . . . Data Cores Recovered . | . . . . Used . | . . . . Hacking Detections 1 | . 1 . . Full Trace Events 1 | . 1 . . Feedback Events . | . . . . Feedback Blocked . | . . . . Robot Schematics Acquired . | . . . . Robots Built . | . . . . Authchips . | . . . . Time . | . . . . Total Robot Build Rating . | . . . . Part Schematics Acquired . | . . . . Parts Built . | . . . . Authchips . | . . . . Time . | . . . . Total Part Build Rating . | . . . . Parts Repaired . | . . . . Time . | . . . . Parts Recycled . | . . . . Recycled Matter . | . . . . Retrieved Matter . | . . . . Retrieved Components . | . . . . Parts Scanalyzed . | . . . . Part Schematics Acquired . | . . . . Parts Damaged . | . . . . Bothacking | -11 -10 -10 -10 ------------ Run | Yrd Mat Min Sub Used RIF Installer . | . . . . Robots Hacked . | . . . . Non-combat . | . . . . Combat . | . . . . Robot Hacks Applied . | . . . . Relay Couplers Released . | . . . . Fabnet Peak Effective % . | . . . . Robots Rewired . | . . . . Allies Hacked . | . . . . Hacks Repelled . | . . . . Allies | -11 -10 -10 -10 -------- Run | Yrd Mat Min Sub Total Allies 1 | . . 1 . Largest Group 1 | . . 1 . Highest-Rated Group 31 | . . 31 . Highest-Rated Ally 31 | . . 31 . Total Orders . | . . . . Ally Attacks . | . . . . Total Damage . | . . . . Kills . | . . . . Allies Corrupted . | . . . . Allies Melted . | . . . . Intel | -11 -10 -10 -10 ------- Run | Yrd Mat Min Sub Robot Analysis Total . | . . . . Derelict Logs Recovered 2 | . . 2 . Drone Launches . | . . . . Drone Recoveries . | . . . . Exploration | -11 -10 -10 -10 ------------- Run | Yrd Mat Min Sub Turns Passed 1655 | 79 297 949 330 Spaces Moved 889 | 51 164 540 134 Core 13 | 13 . . . Treads 876 | 38 164 540 134 Legs . | . . . . Wheels . | . . . . Hover . | . . . . Flight . | . . . . Fastest Speed 50 | 50 160 160 160 Average Speed 170 | 131 160 160 237 Slowest Speed 240 | 160 160 160 240 Overloaded Moves . | . . . . Propulsion Burnouts . | . . . . Robots Hopped . | . . . . Cave-ins Triggered . | . . . . Exploration Rate (%) 33 | 4 31 88 12 Regions Visited 3 Branch Regions 2 Pre-discovered Areas 2 | . . 2 . Known Exits Taken . | . . . . Unknown Exits Taken 3 | 1 1 1 . Scrap Searched . | . . . . Spaces Dug . | . . . . Terrain Destroyed . | . . . . Melee . | . . . . Projectile . | . . . . AOE . | . . . . Terrain Rammed . | . . . . Walls Destroyed . | . . . . Machines Disabled . | . . . . Actions | -11 -10 -10 -10 --------- Run | Yrd Mat Min Sub Total 959 | 63 177 575 144 Wait . | . . . . Move 886 | 50 163 539 134 Hop . | . . . . Pick Up 11 | 7 2 1 1 Fast Attach . | . . . . Attach 10 | 6 . 2 2 Detach 1 | . . . 1 Swap . | . . . . Drop 2 | . . . 2 Fire 47 | . 12 31 4 Melee . | . . . . Ram . | . . . . Kick . | . . . . Crush 2 | . . 2 . Escape Stasis . | . . . . Rewire . | . . . . Trap . | . . . . Miscellaneous . | . . . . Route ------- -11/Scrapyard -10/Materials (discovered 2 exits: [*Min x2]) -10/Mines -10/Subcaves History --------- Turn | Location | Event 8 | -11/Scrapyard | Discovered new exit (range 16) 80 | -11/Scrapyard | Entered Materials 268 | -10/Materials | Discovered new exit (range 16) 309 | -10/Materials | Build established: Mutant 374 | -10/Materials | Discovered new exit (range 12) 377 | -10/Materials | Entered Mines 442 | -10/Mines | Assembled infested the area 619 | -10/Mines | Received a Mining Laser from a helpful Derelict 741 | -10/Mines | Learned location of Zion (-7) 1026 | -10/Mines | Core integrity fell below 50% 1293 | -10/Mines | Discovered new exit (range 15) 1326 | -10/Mines | Entered Subcaves 1647 | -10/Subcaves | Ambushed by swarm of Subdwellers 1647 | -10/Subcaves | Ambushed by Subdwellers from Twisted Machinery 1647 | -10/Subcaves | Ambushed by Subdwellers from Twisted Machinery 1647 | -10/Subcaves | Ambushed by Subdwellers from Twisted Machinery 1647 | -10/Subcaves | Ambushed by Subdwellers from Twisted Machinery 1647 | -10/Subcaves | Ambushed by Subdwellers from Twisted Machinery 1647 | -10/Subcaves | Ambushed by Subdwellers from Twisted Machinery 1656 | -10/Subcaves | Core integrity fell below 20% 1656 | -10/Subcaves | Destroyed by GE-JH7(R) with Subdweller Laser Last Messages --------------- 1G-9X4(R) destroyed. Subatomizers dissect the Sub. Optics, destroying it. Critical hit (Meltdown: +270). LB-TSL(g) destroyed. C4-UPZ(R) destroyed. HV Slug penetrates L3-3IA(R). L3-3IA(R) suffers critical hit (Destroy). L3-3IA(R) destroyed. HV Slug penetrates 1O-A6Z(R). 1O-A6Z(R) suffers critical hit (Destroy). 1O-A6Z(R) knocked back. Scrap Shield destroyed. L6-BFA(h) destroyed. ZH-QSU(R) affixes Scrap Shield Fragment to Scrap Shield. Lgt. Nuclear Core destroyed. 80-PBQ(R) destroyed. ZH-QSU(R) destroyed. BI-LYV(R) destroyed. Map ----- +----------------------------------------------------+ | ?????????????????????????????????????????????????? | | ?????????????????????????????????????????????????? | | ?????????????????????????????????????????????????? | | ?????????????????????????????????????????????????? | | ?????????????????????????????????????????????????? | | ?????????????????????????????????????????????????? | | ?????????????????????????????????????????????????? | | ?????????????????????????????????????????????????? | | ?????????????????????????????????????????????????? | | ?????????????????????????????????????????????????? | | ???????????????????########??????????????????????# | | ???????????????????? ????????????????????### | | ????????????????????? ????????????????????# | | ????????????????????? ????????????????????## | | ?????????????????????? ????????????????????## | | ??????????????????????# ?????????###??####### | | ??????????????????????? ????????## #### # ### | | ???????????????????????# #???????## ## | | ???????????????????????# ####### ## | | ??????????????????????## ;; #?## # ### | | ??????????????????????# R ;##?# ##?### | | ?????????????????????##%%[ ; #?# ##????? | | ?????????????????????# !=R% ### ##?????# | | ?????????????????????# *R=& *% ##?????# | | ?????????????????????#;RR%[] %! #?????# | | ?????????????????????#[%&@& ;;; g ### #???? | | ?????????????????????#;&R%! #; #?## #??? | | ??????????????????? ;;R ## #???# #?? | | ???????????????? ;; ;#### ??# ##?? | | ?????????????? #### ##??## ## ?# #??? | | ???????????? ????## ????####? ## #### | | ????????????######??????# ???????? ## | | ????????????????????????# ???????? #?# | | ???????????????????????? *%##??????? #?# | | ???????????????????????? !#???????? #?## # | | ???????????????????????? #???????? ##??#### | | ???????????????????????? ????????? #??????? | | ???????????????????????? ????????? ??????? | | ????????????????????????######?????????##????????? | | ?????????????????????????????????????????????????? | | ?????????????????????????????????????????????????? | | ?????????????????????????????????????????????????? | | ?????????????????????????????????????????????????? | | ?????????????????????????????????????????????????? | | ?????????????????????????????????????????????????? | | ?????????????????????????????????????????????????? | | ?????????????????????????????????????????????????? | | ?????????????????????????????????????????????????? | | ?????????????????????????????????????????????????? | | ?????????????????????????????????????????????????? | +----------------------------------------------------+ Best States ------------- Heat Dissipation 25 Energy Generation 14 Energy Capacity 250 Matter Stores 300 Matter Capacity 300 Sight Range 16 Terrain Scan Density 10 Armor Coverage 800 Evasion (%) 50 Recoil Reduction 2 Item Schematics ----------------- None Robot Schematics ------------------ None Fabricated ------------ Nothing Alien Tech Used ----------------- None Achievements -------------- I Survived The Infestation Challenges ------------ None Game ------ Seed ExplosiveFrostChronowheel Manual? 0 Play Time 00:13:05 Cumulative 4.1 hours Start 2024.05.10 @ 22:52:35 End 2024.05.10 @ 23:04:05 Sessions 1 Manual Loads 0 Difficulty Rogue Special Mode None Game No. 12 Rogue 12 Adventurer 0 Explorer 0 Win Type - Total 0 Types 0/0/0/0/0/0/0/0/0 Lore% 2 Gallery% 9 Achievement% 12 Wizard Run 0 Options --------- Layout 1 ASCII 0 Keyboard 0 Movement Arrows Keybinds 0 Fullscreen 1 Font 32/SmallcapsGlow Map View 50x40 Zoom Use 0% Tactical HUD 0 Map Filters NONE Filters NONE Steam 1 RUN: cd057f42-c90e-4e48-a24b-d59d57d66ccb